bitfinex/quotes_BTCUSD_20250530
["timestamp","ask_amount","ask_price","bid_price","bid_amount"]
[1748643175231,0.37646214,104570.0,104560.0,0.75649238]
[1748643175429,0.38602456,104570.0,104560.0,0.75649238]
[1748643175833,0.38602438,104570.0,104560.0,0.76795848]
[1748643176029,0.3955868,104570.0,104560.0,0.76795848]
[1748643176457,0.3955868,104570.0,104560.0,0.78320163]
[1748643176829,0.38602438,104570.0,104560.0,0.78320163]
[1748643177019,0.3955868,104570.0,104560.0,0.78320163]
[1748643177226,0.39558671,104570.0,104560.0,0.78320163]
[1748643177465,0.40514922,104570.0,104560.0,0.78320163]
[1748643177910,0.39558671,104570.0,104560.0,0.78320163]
[1748643178245,0.39558671,104570.0,104560.0,0.87905593]
[1748643178246,0.3669,104570.0,104560.0,0.87905593]
[1748643178457,0.34772788,104580.0,104570.0,0.21994725]
[1748643178673,0.04780788,104580.0,104570.0,0.80854497]
[1748643178890,0.03824601,104580.0,104570.0,0.82514497]
[1748643179095,0.03824601,104580.0,104570.0,0.84575745]
[1748643179305,0.03580601,104580.0,104570.0,0.84575745]
[1748643179517,0.02624423,104580.0,104570.0,0.84575745]
[1748643179729,0.02724423,104580.0,104570.0,0.84575745]
[1748643180249,0.01768273,104580.0,104570.0,0.86215745]
[1748643180451,0.02724423,104580.0,104570.0,0.86215745]
[1748643180656,0.0463677,104580.0,104570.0,0.84575745]
[1748643181088,0.0453677,104580.0,104570.0,0.84575745]
[1748643181299,0.03580583,104580.0,104570.0,0.84575745]
[1748643181546,0.04780816,104580.0,104570.0,0.84575745]
[1748643181754,0.04780816,104580.0,104570.0,0.84775745]
[1748643181972,0.03824629,104580.0,104570.0,0.84775745]
[1748643182178,0.0382462,104580.0,104570.0,0.84575745]
[1748643182592,0.0382462,104580.0,104570.0,0.84775745]
[1748643183224,0.22948818,104580.0,104570.0,0.1151237]
[1748643183447,0.25262658,104580.0,104570.0,0.40986611]
[1748643183666,0.25262658,104580.0,104570.0,0.83115809]
[1748643184095,0.25262658,104580.0,104570.0,0.8407206]
[1748643184299,0.26218863,104580.0,104570.0,0.8292545]
[1748643184717,0.26218863,104580.0,104570.0,0.83881692]
[1748643185120,0.04488543,104580.0,104570.0,0.83881628]
[1748643185340,0.23612658,104580.0,104570.0,0.83881628]
[1748643185577,0.24568863,104580.0,104570.0,0.83881628]
[1748643185798,0.24568863,104580.0,104570.0,0.42708745]
[1748643186007,0.24568863,104580.0,104570.0,0.82925395]
[1748643186900,0.22118863,104580.0,104570.0,0.82925395]
[1748643187155,0.23075059,104580.0,104570.0,0.80056642]
[1748643187394,0.23075059,104580.0,104570.0,0.81969189]
[1748643187607,0.23075059,104580.0,104570.0,0.82925449]
[1748643189293,0.01912328,104580.0,104570.0,0.83881636]
[1748643189498,0.07868524,104580.0,104570.0,0.83881636]
[1748643189729,0.08824711,104580.0,104570.0,0.82925403]
[1748643189935,0.28905031,104580.0,104570.0,0.81969161]
[1748643190140,0.26992703,104580.0,104570.0,0.30447982]
[1748643190360,0.28642703,104580.0,104570.0,0.81012901]
[1748643190765,0.30262703,104580.0,104570.0,0.81012901]
[1748643191392,0.30262703,104580.0,104570.0,0.81969161]
[1748643192398,0.26992703,104580.0,104570.0,0.82925412]
[1748643193052,0.29306516,104580.0,104570.0,0.81012901]
[1748643193684,0.29306516,104580.0,104570.0,0.71620901]
[1748643193857,0.29306516,104580.0,104570.0,0.81969161]
[1748643193992,0.29306516,104580.0,104570.0,0.82925412]
[1748643194372,0.25206516,104580.0,104570.0,0.73533412]
[1748643194570,0.25206516,104580.0,104570.0,0.82925412]
[1748643194805,0.21936516,104580.0,104570.0,0.83881654]
[1748643195015,0.21936516,104580.0,104570.0,0.82925412]
[1748643195248,0.21036516,104580.0,104570.0,0.82925412]
[1748643195671,0.21036516,104580.0,104570.0,0.73533412]
[1748643195877,0.21036516,104580.0,104570.0,0.72577161]
[1748643196082,0.21036516,104580.0,104570.0,0.81965161]
[1748643197617,0.21036516,104580.0,104570.0,0.82921403]
[1748643198035,0.21036516,104580.0,104570.0,0.42704753]
[1748643198246,0.21036516,104580.0,104570.0,0.81965161]
[1748643198647,0.21036516,104580.0,104570.0,0.82921412]
[1748643199590,0.21036516,104580.0,104570.0,0.82006774]
[1748643199787,0.21036516,104580.0,104570.0,0.82922414]
[1748643202040,0.21036516,104580.0,104570.0,0.84066964]
[1748643202270,0.16936516,104580.0,104570.0,0.84066964]
[1748643202829,0.16936516,104580.0,104570.0,0.82922414]
[1748643203041,0.16936516,104580.0,104570.0,0.81966163]
[1748643203260,0.20146516,104580.0,104570.0,0.81966163]
[1748643203805,0.20146516,104580.0,104570.0,0.83110713]
[1748643205079,0.20146516,104580.0,104570.0,0.84066964]
[1748643206128,0.25146516,104580.0,104570.0,0.84066964]
[1748643206948,0.23506516,104580.0,104570.0,0.84066964]
[1748643207367,0.21936516,104580.0,104570.0,0.84066964]
[1748643207570,0.21936516,104580.0,104570.0,0.74678964]
[1748643207770,0.21936516,104580.0,104570.0,0.84066964]
[1748643208633,0.23506516,104580.0,104570.0,0.84066964]
[1748643209938,0.19406516,104580.0,104570.0,0.84066964]
[1748643210973,0.17836516,104580.0,104570.0,0.84066964]
[1748643212269,0.21126516,104580.0,104570.0,0.84066964]
[1748643212471,0.21126516,104580.0,104570.0,0.41937803]
[1748643212676,0.21126516,104580.0,104570.0,0.82154453]
[1748643212883,0.21126516,104580.0,104570.0,0.41937803]
[1748643213087,0.21126516,104580.0,104570.0,0.82154453]
[1748643213721,0.21126516,104580.0,104570.0,0.83110713]
[1748643214348,0.21126516,104580.0,104570.0,0.51727962]
[1748643214559,0.21126516,104580.0,104570.0,0.81198203]
[1748643214766,0.21126516,104580.0,104570.0,0.82154481]
[1748643214971,0.21126516,104580.0,104570.0,0.8311075]
[1748643215174,0.21126516,104580.0,104570.0,0.8406701]
[1748643216828,0.21126516,104580.0,104570.0,0.8311075]
[1748643217238,0.21126516,104580.0,104570.0,0.82154481]
[1748643217476,0.21126516,104580.0,104570.0,0.81198203]
[1748643217699,0.17026516,104580.0,104570.0,0.83110769]
[1748643225136,0.47010516,104580.0,104570.0,0.8406702]
[1748643225414,0.47010516,104580.0,104570.0,0.7467902]
[1748643225616,0.47966703,104580.0,104570.0,0.8406702]
[1748643225846,0.44676703,104580.0,104570.0,0.8406702]
[1748643226046,0.40576703,104580.0,104570.0,0.84062598]
[1748643227757,0.42489068,104580.0,104570.0,0.84062598]
[1748643227963,0.42489068,104580.0,104570.0,0.8501884]
[1748643228382,0.42489068,104580.0,104570.0,0.84062598]
[1748643228996,0.42489068,104580.0,104570.0,0.8501884]
[1748643229419,0.06912347,104580.0,104570.0,0.85018776]
[1748643229622,0.36896347,104580.0,104570.0,0.85018776]
[1748643229798,0.3785247,104580.0,104570.0,0.85018776]
[1748643230314,0.38808657,104580.0,104570.0,0.85018776]
[1748643233654,0.34708657,104580.0,104570.0,0.85018776]
[1748643234376,0.33808657,104580.0,104570.0,0.85018776]
[1748643234723,0.3285247,104580.0,104570.0,0.85018776]
[1748643235554,0.33808657,104580.0,104570.0,0.85018776]
[1748643238206,0.3285247,104580.0,104570.0,0.85018776]
[1748643238577,0.33808657,104580.0,104570.0,0.85018776]
[1748643240901,0.3285247,104580.0,104570.0,0.85018776]
[1748643241052,0.33808657,104580.0,104570.0,0.44806548]
[1748643241254,0.33808657,104580.0,104570.0,0.85018776]
[1748643241464,0.29708657,104580.0,104570.0,0.85018776]
[1748643242406,0.30664817,104580.0,104570.0,0.85018776]
[1748643243941,0.30420817,104580.0,104570.0,0.85018776]
[1748643244141,0.31377013,104580.0,104570.0,0.85018776]
[1748643245223,0.49544996,104580.0,104570.0,0.83106301]
[1748643245438,0.49544996,104580.0,104570.0,0.84062543]
[1748643246818,0.48588836,104580.0,104570.0,0.7276205]
[1748643247016,0.51888836,104580.0,104570.0,0.83106319]
[1748643247218,0.50932658,104580.0,104570.0,0.7276205]
[1748643247422,0.50932658,104580.0,104570.0,0.8215005]
[1748643247891,0.50932658,104580.0,104570.0,0.83106319]
[1748643249010,0.54312498,104580.0,104570.0,0.8406257]
[1748643249220,0.50212498,104580.0,104570.0,0.8406257]
[1748643250023,0.34232196,104580.0,104570.0,0.8406257]
[1748643250220,0.31888383,104580.0,104570.0,0.85018812]
[1748643250424,0.51012498,104580.0,104570.0,0.85018812]
[1748643250845,0.51968703,104580.0,104570.0,0.85018812]
[1748643251143,0.51968703,104580.0,104570.0,0.85018757]
[1748643251144,0.30932187,104580.0,104570.0,0.85018757]
[1748643251355,0.31888347,104580.0,104570.0,0.85018757]
[1748643254454,0.31884292,104580.0,104570.0,0.85018757]
[1748643254656,0.3284047,104580.0,104570.0,0.85018757]
[1748643256174,0.31884292,104580.0,104570.0,0.85018757]
[1748643256388,0.32840479,104580.0,104570.0,0.85018757]
[1748643256823,0.28740479,104580.0,104570.0,0.85018757]
[1748643257246,0.29696639,104580.0,104570.0,0.85018757]
[1748643258273,0.30652771,104580.0,104570.0,0.85018757]
[1748643261209,0.02868479,104580.0,104570.0,0.85018757]
[1748643264578,0.47745311,104590.0,104570.0,0.85018703]
[1748643264932,0.47750184,104590.0,104580.0,0.59336343]
[1748643265189,0.47750184,104590.0,104580.0,0.61276937]
[1748643265377,0.47750184,104590.0,104580.0,0.62192577]
[1748643266599,0.47850184,104590.0,104580.0,0.62192577]
[1748643267850,0.17878184,104590.0,104580.0,0.62192577]
[1748643268082,0.47846184,104590.0,104580.0,0.63148782]
[1748643269514,0.47846184,104590.0,104580.0,0.72528782]
[1748643269741,0.47846184,104590.0,104580.0,0.73484978]
[1748643274774,0.47846184,104590.0,104580.0,0.72528782]
[1748643277519,0.47846184,104590.0,104580.0,0.73484978]
[1748643278403,0.17878184,104590.0,104580.0,0.73484978]
[1748643278620,0.00104873,104590.0,104580.0,1.18729516]
[1748643279296,0.00104873,104590.0,104580.0,1.20253831]
[1748643280122,4.873e-05,104590.0,104580.0,1.20453831]
[1748643280581,4.873e-05,104590.0,104580.0,1.20253831]
[1748643280797,4.873e-05,104590.0,104580.0,1.21699251]
[1748643281849,4.873e-05,104590.0,104580.0,1.31484681]
[1748643282277,0.28494873,104600.0,104590.0,0.25110519]
[1748643282487,0.01911743,104610.0,104600.0,0.21988415]
[1748643282704,0.33788439,104610.0,104600.0,1.11792871]
[1748643283330,0.32832526,104610.0,104600.0,1.15978511]
[1748643283532,0.02872526,104610.0,104600.0,1.15978511]
[1748643283738,0.31872622,104610.0,104600.0,1.15978511]
[1748643283945,0.31872622,104610.0,104600.0,1.25229633]
[1748643284159,0.32828526,104610.0,104600.0,1.25229633]
[1748643284387,0.31872622,104610.0,104600.0,1.25229633]
[1748643284604,4.879e-05,104610.0,104600.0,1.25229633]
[1748643284807,0.00960737,104610.0,104600.0,1.25229633]
[1748643285016,0.01916613,104610.0,104600.0,1.25229633]
[1748643285232,0.02016613,104610.0,104600.0,1.25229633]
[1748643285435,0.01060737,104610.0,104600.0,1.25229633]
[1748643285662,0.01060728,104610.0,104600.0,1.25229633]
[1748643285874,0.01060728,104610.0,104600.0,1.25899641]
[1748643286288,0.02016586,104610.0,104600.0,1.25899418]
[1748643286496,0.02016586,104610.0,104600.0,1.25899403]
[1748643286705,0.02016586,104610.0,104600.0,1.25229633]
[1748643286922,0.02016586,104610.0,104600.0,1.25899415]
[1748643287157,0.02972462,104610.0,104600.0,1.25899415]
[1748643287362,0.02972462,104610.0,104600.0,1.25899241]
[1748643287765,0.02972462,104610.0,104600.0,1.25229633]
[1748643287967,0.02016586,104610.0,104600.0,1.25899215]
[1748643288221,0.01060728,104610.0,104600.0,1.25899215]
[1748643288441,0.00104879,104610.0,104600.0,1.25899215]
[1748643288858,0.01060728,104610.0,104600.0,1.25899215]
[1748643289281,0.01060728,104610.0,104600.0,1.25229633]
[1748643289489,0.01060728,104610.0,104600.0,1.25898941]
[1748643289901,0.01060728,104610.0,104600.0,1.25898949]
[1748643290107,0.00104879,104610.0,104600.0,1.25898845]
[1748643290317,0.00104879,104610.0,104600.0,1.99436275]
[1748643290527,0.00104879,104610.0,104600.0,2.39648445]
[1748643290705,0.00104879,104610.0,104600.0,2.40793028]
[1748643291407,0.00104879,104610.0,104600.0,2.00580787]
[1748643291609,4.879e-05,104610.0,104600.0,2.00580787]
[1748643291858,4.879e-05,104610.0,104600.0,2.40324088]
[1748643292053,4.879e-05,104610.0,104600.0,2.00780787]
[1748643292463,4.879e-05,104610.0,104600.0,2.00780597]
[1748643292814,4.879e-05,104610.0,104600.0,2.00780586]
[1748643293019,0.00104879,104610.0,104600.0,2.01380586]
[1748643293632,4.879e-05,104610.0,104600.0,2.00780586]
[1748643293894,4.879e-05,104610.0,104600.0,2.01080586]
[1748643294222,4.879e-05,104610.0,104600.0,2.01080341]
[1748643295498,4.879e-05,104610.0,104600.0,2.01080266]
[1748643295773,4.879e-05,104610.0,104600.0,2.01080222]
[1748643296491,4.879e-05,104610.0,104600.0,1.71128222]
[1748643296732,4.879e-05,104610.0,104600.0,2.01072219]
[1748643296932,4.879e-05,104610.0,104600.0,2.01060219]
[1748643297146,4.879e-05,104610.0,104600.0,2.01060205]
[1748643297769,4.879e-05,104610.0,104600.0,1.61748205]
[1748643297995,4.879e-05,104610.0,104600.0,2.01060205]
[1748643298191,0.01916595,104610.0,104600.0,1.58478205]
[1748643298424,0.01916595,104610.0,104600.0,1.97790205]
[1748643298644,0.00960728,104610.0,104600.0,1.97790205]
[1748643299099,4.879e-05,104610.0,104600.0,1.97790205]
[1748643299317,4.879e-05,104610.0,104600.0,1.97790326]
[1748643299751,4.879e-05,104610.0,104600.0,1.6717786]
[1748643299956,4.879e-05,104610.0,104600.0,1.67846405]
[1748643300898,4.879e-05,104610.0,104600.0,1.58478405]
[1748643301357,4.879e-05,104610.0,104600.0,1.67846405]
[1748643301613,4.879e-05,104610.0,104600.0,1.67846534]
[1748643301887,0.00960737,104610.0,104600.0,1.67846534]
[1748643302421,4.879e-05,104610.0,104600.0,1.67846534]
[1748643302622,0.00960737,104610.0,104600.0,1.67846534]
[1748643302826,4.879e-05,104610.0,104600.0,1.67846534]
[1748643303054,0.00960728,104610.0,104600.0,1.67846534]
[1748643303306,4.879e-05,104610.0,104600.0,1.67846534]
[1748643303546,4.879e-05,104610.0,104600.0,1.6784672]
[1748643304632,4.879e-05,104610.0,104600.0,1.67846916]
[1748643304828,4.879e-05,104610.0,104600.0,1.67847134]
[1748643305183,4.879e-05,104610.0,104600.0,1.6717786]
[1748643305382,4.879e-05,104610.0,104600.0,1.67847162]
[1748643306419,0.00960728,104610.0,104600.0,0.78054991]
[1748643306633,0.05006595,104610.0,104600.0,1.58262017]
[1748643306837,0.04050728,104610.0,104600.0,1.58262073]
[1748643307277,0.04050728,104610.0,104600.0,1.58262469]
[1748643307488,4.879e-05,104610.0,104600.0,1.58262469]
[1748643307905,4.879e-05,104610.0,104600.0,1.58262492]
[1748643308347,0.03418046,104620.0,104610.0,0.21986315]
[1748643308546,0.03466843,104620.0,104610.0,0.64809197]
[1748643308753,0.02511022,104620.0,104610.0,0.64809222]
[1748643308871,0.03466843,104620.0,104610.0,0.64809222]
[1748643309069,0.03466843,104620.0,104610.0,0.65724862]
[1748643309448,0.03466843,104620.0,104610.0,0.66869659]
[1748643309650,0.03466843,104620.0,104610.0,0.66399574]
[1748643310056,0.03466843,104620.0,104610.0,0.65925015]
[1748643311237,0.02916161,104620.0,104610.0,0.65925015]
[1748643311387,0.06106161,104620.0,104610.0,0.65925015]
[1748643311586,0.06106161,104620.0,104610.0,0.67069812]
[1748643312250,0.07061964,104620.0,104610.0,0.67069812]
[1748643312459,0.08017795,104620.0,104610.0,0.67069812]
[1748643312668,0.26178895,104620.0,104610.0,0.75481963]
[1748643312879,0.26178895,104620.0,104610.0,0.76437848]
[1748643313090,0.26178895,104620.0,104610.0,0.77393724]
[1748643313302,0.26178895,104620.0,104610.0,0.77394291]
[1748643313514,0.05150421,104620.0,104610.0,0.78350156]
[1748643314258,0.05150421,104620.0,104610.0,0.78350262]
[1748643315309,0.05150421,104620.0,104610.0,0.78350367]
[1748643315924,0.25223055,104620.0,104610.0,0.78350367]
[1748643316141,0.06106252,104620.0,104610.0,0.77394553]
[1748643316850,0.06106252,104620.0,104610.0,0.77394572]
[1748643317094,0.06106197,104620.0,104610.0,0.77394572]
[1748643317520,0.02916197,104620.0,104610.0,0.77394572]
[1748643317848,0.22033,104620.0,104610.0,0.77394638]
[1748643318067,0.22988831,104620.0,104610.0,0.77394706]
[1748643318444,0.03872028,104620.0,104610.0,0.77394706]
[1748643318661,0.03872028,104620.0,104610.0,0.77394798]
[1748643318889,0.03872028,104620.0,104610.0,0.77394806]
[1748643319167,0.03872028,104620.0,104610.0,0.76723477]
[1748643319378,0.03872028,104620.0,104610.0,0.77394806]
[1748643319580,0.03872028,104620.0,104610.0,0.77394813]
[1748643320406,0.03872028,104620.0,104610.0,0.76723477]
[1748643320609,0.03872028,104620.0,104610.0,0.77394936]
[1748643321461,0.03872028,104620.0,104610.0,0.77394938]
[1748643321886,0.02916197,104620.0,104610.0,0.77394938]
[1748643322087,0.02916197,104620.0,104610.0,0.77394949]
[1748643323124,0.02916197,104620.0,104610.0,0.76723477]
[1748643323536,0.02916197,104620.0,104610.0,0.77394963]
[1748643323739,0.02916197,104620.0,104610.0,0.7739498]
[1748643324352,0.02916197,104620.0,104610.0,0.6802698]
[1748643324556,0.03872028,104620.0,104610.0,0.7738298]
[1748643324758,0.05412028,104620.0,104610.0,0.77382989]
[1748643324970,0.05412028,104620.0,104610.0,0.68026989]
[1748643325178,0.04456197,104620.0,104610.0,0.76711477]
[1748643325384,0.02916197,104620.0,104610.0,0.77383007]
[1748643325586,0.02916197,104620.0,104610.0,0.67355477]
[1748643325974,0.02916197,104620.0,104610.0,0.77383041]
[1748643326444,0.02916197,104620.0,104610.0,0.78907356]
[1748643326929,0.02916197,104620.0,104610.0,0.78907401]
[1748643327347,0.02916197,104620.0,104610.0,0.78235792]
[1748643327686,0.02916197,104620.0,104610.0,0.78907473]
[1748643327882,0.2298884,104620.0,104610.0,0.2781493]
[1748643328095,0.2298884,104620.0,104610.0,0.78339034]
[1748643328293,0.2298884,104620.0,104610.0,0.77667353]
[1748643328493,0.02916197,104620.0,104610.0,0.77667353]
[1748643328719,0.02916197,104620.0,104610.0,0.78339041]
[1748643329274,0.04576197,104620.0,104610.0,0.78339038]
[1748643329473,0.05532037,104620.0,104610.0,0.76427295]
[1748643329749,0.2615884,104620.0,104610.0,0.76427314]
[1748643329923,0.2615884,104620.0,104610.0,0.74515497]
[1748643330129,0.23693064,104620.0,104610.0,0.76427295]
[1748643330360,0.22033064,104620.0,104610.0,0.76427291]
[1748643330567,0.22033064,104620.0,104610.0,0.7575561]
[1748643330783,0.22033064,104620.0,104610.0,0.6639961]
[1748643330993,0.22033064,104620.0,104610.0,0.7575561]
[1748643331199,0.22033064,104620.0,104610.0,0.76427294]
[1748643332224,0.22033064,104620.0,104610.0,0.76427291]
[1748643332446,0.22033064,104620.0,104610.0,0.7575561]
[1748643332659,0.22033064,104620.0,104610.0,0.76427291]
[1748643332863,0.22033064,104620.0,104610.0,0.7575561]
[1748643333071,0.22033064,104620.0,104610.0,0.76427291]
[1748643333625,0.01960421,104620.0,104610.0,0.78347999]
[1748643333846,0.22033055,104620.0,104610.0,0.79867999]
[1748643334050,0.22033055,104620.0,104610.0,0.79868]
[1748643334252,0.22033055,104620.0,104610.0,0.81392315]
[1748643334673,0.22988895,104620.0,104610.0,0.81392319]
[1748643335175,0.22988895,104620.0,104610.0,0.79872319]
[1748643336027,0.22988895,104620.0,104610.0,0.70516319]
[1748643336230,0.22988895,104620.0,104610.0,0.81392319]
[1748643336645,0.22988895,104620.0,104610.0,0.81392328]
[1748643337735,0.22988895,104620.0,104610.0,0.7947162]
[1748643337945,0.22988895,104620.0,104610.0,0.7795162]
[1748643338157,0.22988895,104620.0,104610.0,0.77951658]
[1748643338371,0.22988895,104620.0,104610.0,0.78919658]
[1748643339215,0.22988895,104620.0,104610.0,0.78919661]
[1748643339628,0.22988895,104620.0,104610.0,0.78919659]
[1748643340011,0.22988895,104620.0,104610.0,0.79875535]
[1748643340217,0.22988895,104620.0,104610.0,0.79203801]
[1748643340426,0.22988895,104620.0,104610.0,0.79875533]
[1748643340623,0.22988895,104620.0,104610.0,0.79875528]
[1748643341205,0.22988895,104620.0,104610.0,0.69847801]
[1748643341431,0.22988895,104620.0,104610.0,0.79875528]
[1748643341628,0.22988895,104620.0,104610.0,0.79203801]
[1748643341833,0.22988895,104620.0,104610.0,0.79875525]
[1748643342496,0.22988895,104620.0,104610.0,0.79875524]
[1748643342733,0.22988895,104620.0,104610.0,0.79875525]
[1748643342942,0.22988895,104620.0,104610.0,0.79875524]
[1748643344408,0.22988895,104620.0,104610.0,0.79875525]
[1748643344907,0.22988895,104620.0,104610.0,0.70519526]
[1748643345206,0.22988895,104620.0,104610.0,0.78907526]
[1748643345421,0.22988895,104620.0,104610.0,0.38695298]
[1748643345641,0.22988895,104620.0,104610.0,0.78907526]
[1748643346070,0.22988895,104620.0,104610.0,0.79863393]
[1748643346295,0.22988895,104620.0,104610.0,0.70507393]
[1748643346510,0.22988895,104620.0,104610.0,0.79191668]
[1748643346692,0.22988895,104620.0,104610.0,0.79863393]
[1748643347781,0.22988895,104620.0,104610.0,0.80134968]
[1748643347993,0.22988895,104620.0,104610.0,0.80806696]
[1748643348440,0.22988895,104620.0,104610.0,0.78907529]
[1748643348861,0.22988895,104620.0,104610.0,0.6955153]
[1748643349095,0.02916252,104620.0,104610.0,0.79863397]
[1748643349316,0.22033055,104620.0,104610.0,0.70507391]
[1748643349519,0.22033055,104620.0,104610.0,0.79179668]
[1748643349725,0.22033055,104620.0,104610.0,0.79851393]
[1748643349934,0.22033055,104620.0,104610.0,0.79179668]
[1748643350144,0.22033055,104620.0,104610.0,0.79851377]
[1748643350360,0.22988895,104620.0,104610.0,0.79851377]
[1748643350779,0.22988895,104620.0,104610.0,0.79179668]
[1748643350986,0.22988895,104620.0,104610.0,0.79851385]
[1748643351411,0.22988895,104620.0,104610.0,0.79851388]
[1748643352434,0.22988895,104620.0,104610.0,0.79851391]
[1748643352640,0.22988895,104620.0,104610.0,0.80825997]
[1748643352825,0.22988895,104620.0,104610.0,0.80825999]
[1748643354045,0.22988895,104620.0,104610.0,0.79851393]
[1748643354246,0.22988895,104620.0,104610.0,0.798514]
[1748643354445,0.22988895,104620.0,104610.0,0.79851405]
[1748643354859,0.22988895,104620.0,104610.0,0.79179668]
[1748643355094,0.22988895,104620.0,104610.0,0.79851407]
[1748643355298,0.22988895,104620.0,104610.0,0.79179668]
[1748643355503,0.22988895,104620.0,104610.0,0.79851407]
[1748643355713,0.01960421,104620.0,104610.0,0.79851403]
[1748643355912,0.01960421,104620.0,104610.0,0.81491403]
[1748643356395,0.22033055,104620.0,104610.0,0.80819668]
[1748643356606,0.22033055,104620.0,104610.0,0.81491396]
[1748643356813,0.22033055,104620.0,104610.0,0.814914]
[1748643357016,0.22033055,104620.0,104610.0,0.80346603]
[1748643357223,0.22988895,104620.0,104610.0,0.80346603]
[1748643357637,0.22988895,104620.0,104610.0,0.81281271]
[1748643357837,0.22988895,104620.0,104610.0,0.81281273]
[1748643358045,0.22988895,104620.0,104610.0,0.80346589]
[1748643358248,0.03872092,104620.0,104610.0,0.80346594]
[1748643358452,0.22988895,104620.0,104610.0,0.78625333]
[1748643358654,0.02916252,104620.0,104610.0,0.77941218]
[1748643358861,0.22033055,104620.0,104610.0,0.77941218]
[1748643359240,0.22033055,104620.0,104610.0,0.77941229]
[1748643359437,0.22033055,104620.0,104610.0,0.77269495]
[1748643359638,0.22033055,104620.0,104610.0,0.77941231]
[1748643359848,0.22033055,104620.0,104610.0,0.37729022]
[1748643360085,0.22033055,104620.0,104610.0,0.78225399]
[1748643360243,0.22033055,104620.0,104610.0,0.78897135]
[1748643360659,0.21077252,104620.0,104610.0,0.76985346]
[1748643360892,0.24087252,104620.0,104610.0,0.76029444]
[1748643361058,0.221756,104620.0,104610.0,0.13802069]
[1748643361287,0.221756,104620.0,104610.0,0.33876659]
[1748643361459,0.221756,104620.0,104610.0,0.75044812]
[1748643361672,0.221756,104620.0,104610.0,0.73520497]
[1748643361880,0.221756,104620.0,104610.0,0.82771619]
[1748643362089,0.221756,104620.0,104610.0,0.82771624]
[1748643362710,0.221756,104620.0,104610.0,0.82771466]
[1748643363334,0.221756,104620.0,104610.0,0.82771463]
[1748643363922,0.221756,104620.0,104610.0,0.82099841]
[1748643364128,0.221756,104620.0,104610.0,0.82771376]
[1748643365272,0.221756,104620.0,104610.0,0.8277131]
[1748643365975,0.221756,104620.0,104610.0,0.82771259]
[1748643366646,0.191656,104620.0,104610.0,0.82771259]
[1748643367090,0.191656,104620.0,104610.0,0.85881259]
[1748643367312,0.191656,104620.0,104610.0,0.85881219]
[1748643367747,0.191656,104620.0,104610.0,0.86837123]
[1748643367953,0.191656,104620.0,104610.0,0.86837099]
[1748643368154,0.191656,104620.0,104610.0,0.84925264]
[1748643368496,0.191656,104620.0,104610.0,0.44041691]
[1748643368699,0.191656,104620.0,104610.0,0.84925264]
[1748643368902,0.191656,104620.0,104610.0,0.64850702]
[1748643369100,0.191656,104620.0,104610.0,0.83969314]
[1748643369504,0.191656,104620.0,104610.0,0.84925245]
[1748643369690,0.191656,104620.0,104610.0,0.84925237]
[1748643370127,0.191656,104620.0,104610.0,0.64850661]
[1748643370753,0.191656,104620.0,104610.0,0.64850656]
[1748643371248,0.191656,104620.0,104610.0,0.64179357]
[1748643371475,0.191656,104620.0,104610.0,0.64850646]
[1748643371915,0.191656,104620.0,104610.0,0.64850642]
[1748643372322,0.191656,104620.0,104610.0,0.64850636]
[1748643372532,0.191656,104620.0,104610.0,0.6485063]
[1748643372754,0.191656,104620.0,104610.0,0.64850626]
[1748643373657,0.191656,104620.0,104610.0,0.64179357]
[1748643373911,0.191656,104620.0,104610.0,0.55506621]
[1748643374135,0.191656,104620.0,104610.0,0.64850621]
[1748643374550,0.191656,104620.0,104610.0,0.63704254]
[1748643375300,0.191656,104620.0,104610.0,0.63704252]
[1748643375516,0.191656,104620.0,104610.0,0.63704251]
[1748643376610,0.191656,104620.0,104610.0,0.6303299]
[1748643376807,0.191656,104620.0,104610.0,0.63704255]
[1748643377207,0.191656,104620.0,104610.0,0.6370426]
[1748643378036,0.490456,104620.0,104610.0,0.6370426]
[1748643378557,0.490456,104620.0,104610.0,0.64850627]
[1748643378759,0.490456,104620.0,104610.0,0.64850628]
[1748643379003,0.490456,104620.0,104610.0,0.64179357]
[1748643379225,0.00048797,104620.0,104610.0,1.24181491]
[1748643379478,0.00048797,104620.0,104610.0,1.53815175]
[1748643379690,0.00048797,104620.0,104610.0,1.97400605]
[1748643379900,0.0286677,104640.0,104630.0,0.21982111]
[1748643380116,0.0286677,104640.0,104630.0,0.67896208]
[1748643380117,0.03822464,104640.0,104630.0,0.67896208]
[1748643380307,0.03822464,104640.0,104630.0,0.67224933]
[1748643380308,0.04778084,104640.0,104630.0,0.67224933]
[1748643380600,0.04778084,104640.0,104630.0,0.67895922]
[1748643380810,0.04778084,104640.0,104630.0,0.69956238]
[1748643381438,0.20078615,104650.0,104630.0,0.69000499]
[1748643381652,0.21048783,104650.0,104640.0,0.63371016]
[1748643381861,0.50924783,104650.0,104640.0,0.73999701]
[1748643382069,0.21048783,104650.0,104640.0,0.74915341]
[1748643382277,0.50924783,104650.0,104640.0,0.74244742]
[1748643382510,0.50924783,104650.0,104640.0,0.74915065]
[1748643382715,0.21048783,104650.0,104640.0,0.75200362]
[1748643382958,0.0001463,104650.0,104640.0,1.1703848]
[1748643383401,0.0031463,104650.0,104640.0,1.1703848]
[1748643383615,0.0011463,104650.0,104640.0,1.18183156]
[1748643383828,0.0011463,104650.0,104640.0,1.1818234]
[1748643384055,0.0011463,104650.0,104640.0,1.17381525]
[1748643384238,0.0001463,104650.0,104640.0,1.18051006]
[1748643384694,0.0001463,104650.0,104640.0,1.18050964]
[1748643384900,0.0001463,104650.0,104640.0,1.17381525]
[1748643385327,0.0001463,104650.0,104640.0,1.18050964]
[1748643385540,0.0001463,104650.0,104640.0,1.17381525]
[1748643386388,0.0001463,104650.0,104640.0,1.18050917]
[1748643386654,0.0001463,104650.0,104640.0,1.16236849]
[1748643387073,0.0001463,104650.0,104640.0,1.16906193]
[1748643387561,0.0001463,104650.0,104640.0,1.16236849]
[1748643387767,0.0001463,104650.0,104640.0,1.16905892]
[1748643387976,0.0001463,104650.0,104640.0,1.16905891]
[1748643388833,0.0001463,104650.0,104640.0,1.16905605]
[1748643389037,0.0001463,104650.0,104640.0,1.17574361]
[1748643389457,0.0001463,104650.0,104640.0,1.17574292]
[1748643390110,0.0001463,104650.0,104640.0,1.17574289]
[1748643390553,0.0001463,104650.0,104640.0,1.57019481]
[1748643390768,0.0001463,104650.0,104640.0,1.57019475]
[1748643391198,0.0001463,104650.0,104640.0,1.57495711]
[1748643391415,0.0001463,104650.0,104640.0,1.58164149]
[1748643392262,0.0001463,104650.0,104640.0,1.58163869]
[1748643392478,0.0001463,104650.0,104640.0,1.92163869]
[1748643392686,0.0001463,104650.0,104640.0,1.91495711]
[1748643392951,0.0001463,104650.0,104640.0,1.92163857]
[1748643393154,0.0001463,104650.0,104640.0,1.91495711]
[1748643393363,0.0001463,104650.0,104640.0,1.92163625]
[1748643393975,0.0001463,104650.0,104640.0,1.91495711]
[1748643394228,0.0001463,104650.0,104640.0,1.92163591]
[1748643394434,0.0001463,104650.0,104640.0,1.92163411]
[1748643394874,0.0001463,104650.0,104640.0,1.89073245]
[1748643395085,0.0001463,104650.0,104640.0,1.88405711]
[1748643395288,0.0001463,104650.0,104640.0,1.89073245]